bitfinex/quotes_SOLUSD_20251119
["timestamp","ask_amount","ask_price","bid_price","bid_amount"]
[1763586580522,18.82096,133.75,133.74,0.2]
[1763586580721,29.76665081,133.75,133.74,0.2]
[1763586581332,10.94569081,133.71,133.66,11.62569081]
[1763586581523,10.94569081,133.71,133.64,0.2]
[1763586581524,18.12096,133.72,133.67,12.74569081]
[1763586581844,10.94569081,133.73,133.68,10.94569081]
[1763586582131,10.94569081,133.73,133.68,11.62569081]
[1763586582333,10.94569081,133.72,133.69,0.68]
[1763586582640,10.94569081,133.71,133.67,1.8]
[1763586582815,11.64569081,133.71,133.67,1.8]
[1763586583011,0.7,133.73,133.67,12.74569081]
[1763586583313,10.94569081,133.72,133.68,11.62569081]
[1763586583522,10.94569081,133.72,133.68,0.68]
[1763586583724,10.94569081,133.72,133.69,0.68]
[1763586583908,18.12096,133.74,133.69,11.62569081]
[1763586584109,10.94569081,133.73,133.69,11.62569081]
[1763586584334,10.94569081,133.73,133.7,0.68]
[1763586585412,10.94569081,133.73,133.68,11.62569081]
[1763586585612,10.94569081,133.73,133.69,0.68]
[1763586586011,10.94569081,133.73,133.69,11.62569081]
[1763586588048,11.64569081,133.73,133.69,0.68]
[1763586588339,29.06665081,133.74,133.69,11.62569081]
[1763586588513,29.76665081,133.74,133.69,11.62569081]
[1763586588717,29.06665081,133.74,133.7,11.62569081]
[1763586589244,29.76665081,133.74,133.7,0.68]
[1763586589938,10.94569081,133.73,133.7,0.68]
[1763586590307,18.12096,133.74,133.7,0.68]
[1763586590509,10.94569081,133.73,133.7,0.68]
[1763586591058,29.74665081,133.74,133.7,0.68]
[1763586591206,10.94569081,133.74,133.71,1.8]
[1763586591406,18.12096,133.75,133.71,12.74569081]
[1763586591407,29.06665081,133.75,133.71,12.74569081]
[1763586591609,29.06665081,133.75,133.71,13.43569081]
[1763586591828,29.06665081,133.75,133.71,2.49]
[1763586592026,10.94569081,133.74,133.71,2.49]
[1763586592831,6.99887426,133.74,133.71,2.49]
[1763586593031,25.79983426,133.75,133.71,2.49]
[1763586594660,11.58882769,133.78,133.69,1.8]
[1763586594661,6.99887426,133.72,133.69,1.8]
[1763586594963,18.12096,133.73,133.69,1.8]
[1763586595127,0.68,133.74,133.69,2.49]
[1763586595330,18.12096,133.71,133.7,0.69]
[1763586595957,9.78882769,133.78,133.7,7.68887426]
[1763586595958,18.12096,133.75,133.7,7.68887426]
[1763586596263,18.12096,133.73,133.71,6.99887426]
[1763586596438,18.12096,133.73,133.71,7.68887426]
[1763586596649,25.11983426,133.75,133.71,7.68887426]
[1763586596961,7.67887426,133.74,133.69,9.48887426]
[1763586597131,6.99887426,133.74,133.7,0.69]
[1763586597327,25.11983426,133.72,133.67,0.69]
[1763586597535,25.11983426,133.72,133.68,8.79887426]
[1763586597729,18.12096,133.72,133.68,8.79887426]
[1763586597931,18.12096,133.72,133.69,0.69]
[1763586598751,6.99887426,133.72,133.69,0.69]
[1763586599336,7.67887426,133.72,133.68,1.8]
[1763586599659,7.67887426,133.72,133.68,9.48887426]
[1763586600067,19.92096,133.75,133.68,1.8]
[1763586600269,18.12096,133.75,133.69,0.69]
[1763586600454,0.68,133.74,133.69,6.99887426]
[1763586600770,18.12096,133.71,133.64,0.2]
[1763586600933,6.99887426,133.7,133.65,7.68887426]
[1763586601259,6.99887426,133.7,133.66,1.8]
[1763586601663,7.67887426,133.7,133.66,2.49]
[1763586601871,7.67887426,133.7,133.66,0.69]
[1763586602160,25.11983426,133.72,133.67,7.68887426]
[1763586602363,18.12096,133.7,133.68,0.69]
[1763586602663,25.11983426,133.72,133.68,0.69]
[1763586602959,7.67887426,133.71,133.66,7.68887426]
[1763586603260,6.99887426,133.7,133.66,0.69]
[1763586603562,6.99887426,133.7,133.64,0.2]
[1763586603563,25.11983426,133.69,133.64,0.2]
[1763586603728,6.99887426,133.65,133.64,0.2]
[1763586603935,25.11983426,133.65,133.64,0.2]
[1763586604146,18.12096,133.62,133.6,0.2]
[1763586604351,6.99887426,133.61,133.6,0.2]
[1763586604549,25.11983426,133.62,133.6,0.2]
[1763586604767,18.12096,133.63,133.61,6.99887426]
[1763586604967,18.12096,133.63,133.6,7.88887426]
[1763586605264,6.99887426,133.63,133.6,0.89]
[1763586605429,6.99887426,133.64,133.6,0.2]
[1763586605635,18.12096,133.65,133.61,7.68887426]
[1763586605830,6.99887426,133.64,133.6,7.19887426]
[1763586606040,18.80096,133.65,133.6,7.88887426]
[1763586606255,18.12096,133.65,133.61,7.68887426]
[1763586606455,25.11983426,133.65,133.61,7.68887426]
[1763586606651,18.12096,133.65,133.62,0.69]
[1763586606850,18.12096,133.67,133.64,6.99887426]
[1763586607052,6.99887426,133.65,133.62,1.8]
[1763586607252,6.99887426,133.63,133.62,1.8]
[1763586607460,18.12096,133.64,133.62,0.69]
[1763586607651,18.12096,133.64,133.6,7.88887426]
[1763586607652,25.11983426,133.64,133.6,7.88887426]
[1763586607968,6.99887426,133.62,133.6,0.2]
[1763586608464,6.99887426,133.63,133.6,0.2]
[1763586608658,6.99887426,133.62,133.6,0.2]
[1763586608847,6.99887426,133.61,133.6,0.2]
[1763586609049,25.79983426,133.61,133.6,0.2]
[1763586609354,7.67887426,133.61,133.6,0.2]
[1763586610270,18.12096,133.62,133.6,0.2]
[1763586610654,18.12096,133.61,133.6,0.2]
[1763586611033,25.79983426,133.61,133.6,0.2]
[1763586611970,18.80096,133.61,133.6,0.2]
[1763586612550,25.79983426,133.61,133.6,0.2]
[1763586614947,44.38753621,133.61,133.6,0.2]
[1763586615352,44.38753621,133.61,133.58,0.2]
[1763586615564,44.38753621,133.61,133.53,0.2]
[1763586615565,18.12096,133.55,133.53,0.2]
[1763586615740,18.58770195,133.54,133.53,0.2]
[1763586615939,9.78882769,133.53,133.5,0.2]
[1763586616135,25.58657621,133.52,133.5,0.2]
[1763586617566,11.58882769,133.55,133.5,0.2]
[1763586617766,6.99887426,133.52,133.5,0.2]
[1763586618706,13.99774852,133.52,133.5,0.2]
[1763586618863,18.12096,133.52,133.5,0.2]
[1763586619177,25.11983426,133.52,133.5,0.2]
[1763586620052,1.99999999,133.57,133.51,0.88]
[1763586620053,18.12096,133.57,133.51,0.88]
[1763586620369,6.99887426,133.52,133.51,0.88]
[1763586620548,6.99887426,133.52,133.51,0.2]
[1763586620756,1.8,133.56,133.51,0.88]
[1763586621088,25.11983426,133.52,133.51,0.2]
[1763586621246,18.12096,133.52,133.51,0.2]
[1763586621446,25.11983426,133.52,133.51,0.2]
[1763586621648,18.12096,133.52,133.51,0.2]
[1763586621944,6.99887426,133.55,133.51,0.88]
[1763586622165,6.99887426,133.56,133.51,7.87887426]
[1763586622365,1.8,133.58,133.52,0.68]
[1763586622594,6.99887426,133.55,133.52,0.68]
[1763586624192,6.99887426,133.53,133.51,0.2]
[1763586624382,6.99887426,133.52,133.51,0.88]
[1763586624585,18.12096,133.55,133.51,0.88]
[1763586624766,6.99887426,133.52,133.51,0.2]
[1763586625378,25.11983426,133.52,133.51,0.2]
[1763586625784,32.11870852,133.52,133.51,0.2]
[1763586626084,25.11983426,133.52,133.51,0.2]
[1763586626271,13.99774852,133.52,133.51,0.2]
[1763586626604,6.99887426,133.52,133.51,0.2]
[1763586626895,25.11983426,133.52,133.51,0.2]
[1763586627268,18.12096,133.52,133.51,0.2]
[1763586627467,25.11983426,133.52,133.51,0.2]
[1763586628672,25.11983426,133.52,133.46,0.2]
[1763586628673,18.12096,133.48,133.46,0.2]
[1763586628898,6.99887426,133.47,133.46,0.2]
[1763586630004,6.99887426,133.47,133.46,0.88]
[1763586630373,6.99887426,133.47,133.46,0.2]
[1763586631286,18.12096,133.48,133.46,0.2]
[1763586631487,6.99887426,133.47,133.46,0.2]
[1763586632290,1.99999999,133.58,133.46,0.88]
[1763586632592,11.58882769,133.57,133.47,6.99887426]
[1763586632898,6.99887426,133.52,133.46,0.88]
[1763586633083,6.99887426,133.48,133.47,0.68]
[1763586633602,18.12096,133.51,133.47,0.68]
[1763586633812,6.99887426,133.49,133.47,0.68]
[1763586633983,6.99887426,133.48,133.47,0.68]
[1763586634181,6.99887426,133.49,133.47,0.68]
[1763586634585,18.12096,133.51,133.47,0.68]
[1763586635191,6.99887426,133.48,133.47,0.68]
[1763586636002,6.99887426,133.48,133.46,0.2]
[1763586636201,6.99887426,133.48,133.46,0.88]
[1763586636588,6.99887426,133.48,133.47,0.68]
[1763586636797,6.99887426,133.49,133.47,0.68]
[1763586637304,6.99887426,133.59,133.47,0.68]
[1763586637514,6.99887426,133.51,133.47,0.68]
[1763586637679,6.99887426,133.5,133.47,0.68]
[1763586638990,17.40096,133.51,133.48,6.99887426]
[1763586639206,6.99887426,133.5,133.47,0.68]
[1763586639511,0.67,133.53,133.47,0.68]
[1763586639692,6.99887426,133.49,133.47,0.68]
[1763586641809,6.99887426,133.5,133.47,0.68]
[1763586642011,0.67,133.56,133.48,6.99887426]
[1763586642181,6.99887426,133.52,133.48,6.99887426]
[1763586642382,6.99887426,133.51,133.49,0.68]
[1763586643190,6.99887426,133.52,133.49,0.68]
[1763586643406,6.99887426,133.51,133.49,0.68]
[1763586643602,18.12096,133.54,133.49,0.68]
[1763586643603,6.99887426,133.52,133.49,0.68]
[1763586643812,6.99887426,133.53,133.49,0.68]
[1763586644019,18.12096,133.54,133.49,0.68]
[1763586644320,10.45882769,133.57,133.49,7.67887426]
[1763586644490,25.11983426,133.54,133.49,2.48]
[1763586644815,6.99887426,133.53,133.5,0.68]
[1763586646507,6.99887426,133.52,133.49,1.8]
[1763586646709,6.99887426,133.52,133.46,0.2]
[1763586646710,6.99887426,133.5,133.48,0.68]
[1763586647998,6.99887426,133.49,133.48,0.68]
[1763586648503,18.12096,133.51,133.48,0.68]
[1763586648700,6.99887426,133.49,133.48,0.68]
[1763586649613,25.11983426,133.51,133.48,0.68]
[1763586649794,18.12096,133.51,133.48,0.68]
[1763586649994,18.12096,133.51,133.48,7.67887426]
[1763586650195,7.48001859,133.69,133.48,7.67887426]
[1763586650196,0.72,133.58,133.5,6.99887426]
[1763586650390,6.99887426,133.55,133.5,8.79887426]
[1763586650610,6.99887426,133.55,133.51,0.67]
[1763586650922,6.99887426,133.54,133.51,0.67]
[1763586652007,6.99887426,133.53,133.51,0.67]
[1763586653226,6.99887426,133.52,133.48,0.67]
[1763586653404,6.99887426,133.51,133.49,1.8]
[1763586653605,6.99887426,133.5,133.48,0.67]
[1763586653904,6.99887426,133.49,133.46,0.87]
[1763586654115,6.99887426,133.47,133.46,0.87]
[1763586654297,6.99887426,133.47,133.46,0.2]
[1763586654629,18.12096,133.49,133.46,0.2]
[1763586654928,11.01155018,133.47,133.46,0.2]
[1763586655394,11.01155018,133.47,133.46,0.87]
[1763586656118,18.12096,133.5,133.46,0.87]
[1763586656425,11.01155018,133.49,133.47,0.67]
[1763586657197,18.12096,133.5,133.47,0.67]
[1763586657396,11.01155018,133.49,133.47,0.67]
[1763586659995,11.01155018,133.48,133.46,0.2]
[1763586660200,11.01155018,133.47,133.46,0.2]
[1763586660429,34.33192805,133.47,133.46,0.2]
[1763586660796,18.12096,133.48,133.46,0.2]
[1763586661000,29.13251018,133.48,133.46,0.87]
[1763586661319,18.12096,133.49,133.46,0.87]
[1763586661626,0.72,133.54,133.47,0.67]
[1763586661834,11.01155018,133.54,133.49,11.01155018]
[1763586662202,11.01155018,133.53,133.5,0.67]
[1763586662404,29.13251018,133.53,133.5,0.67]
[1763586662703,11.01155018,133.51,133.48,1.8]
[1763586662909,0.72,133.53,133.49,0.67]
[1763586663217,11.01155018,133.52,133.49,0.67]
[1763586663616,11.01155018,133.51,133.49,0.67]
[1763586663817,11.01155018,133.5,133.47,0.67]
[1763586664018,0.72,133.52,133.47,0.67]
[1763586664019,11.01155018,133.49,133.47,0.67]
[1763586664222,11.01155018,133.48,133.47,0.67]
[1763586664419,18.84096,133.52,133.47,0.67]
[1763586664420,11.01155018,133.49,133.47,0.67]
[1763586664732,18.12096,133.52,133.47,0.67]
[1763586664733,11.01155018,133.5,133.47,0.67]
[1763586665113,11.01155018,133.49,133.46,0.2]
[1763586665306,11.01155018,133.48,133.46,0.2]
[1763586665507,11.01155018,133.49,133.46,0.87]
[1763586665711,11.01155018,133.48,133.46,0.87]
[1763586666329,32.98882769,133.55,133.47,0.67]
[1763586666631,11.01155018,133.52,133.47,0.67]
[1763586666832,0.72,133.54,133.47,0.67]
[1763586667018,18.12096,133.52,133.47,0.67]
[1763586667337,11.01155018,133.5,133.47,0.67]
[1763586667510,11.01155018,133.49,133.46,2.0]
[1763586667931,11.01155018,133.49,133.46,2.67]
[1763586668134,11.01155018,133.49,133.47,0.67]
[1763586668604,11.01155018,133.49,133.46,2.67]
[1763586668806,11.01155018,133.47,133.46,0.2]
[1763586669740,0.72,133.52,133.46,0.87]
[1763586669948,18.12096,133.49,133.46,0.87]
[1763586670237,11.01155018,133.47,133.46,0.87]
[1763586670447,29.13251018,133.49,133.46,0.2]
[1763586670613,29.13251018,133.5,133.47,0.67]
[1763586670947,11.01155018,133.51,133.47,0.67]
[1763586671115,11.01155018,133.5,133.47,0.67]
[1763586672139,11.01155018,133.49,133.46,0.2]
[1763586672316,11.01155018,133.47,133.46,0.2]
[1763586672647,29.13251018,133.47,133.46,0.2]
[1763586672952,29.85251018,133.47,133.46,0.2]
[1763586673823,29.13251018,133.47,133.46,0.2]
[1763586674720,29.85251018,133.47,133.46,0.2]
[1763586675343,11.73155018,133.47,133.46,0.2]
[1763586676416,32.53192805,133.47,133.46,0.2]
[1763586676621,21.52037787,133.47,133.46,0.2]
[1763586676954,29.85251018,133.47,133.46,0.2]
[1763586678451,50.65288805,133.47,133.46,0.2]
[1763586680029,18.12096,133.43,133.38,0.67]
[1763586680237,11.01155018,133.4,133.38,0.67]
[1763586680647,11.01155018,133.41,133.38,0.67]
[1763586680826,18.12096,133.43,133.38,0.67]
[1763586681031,11.01155018,133.41,133.38,0.67]
[1763586681447,18.12096,133.43,133.38,0.67]
[1763586681637,11.01155018,133.4,133.38,0.67]
[1763586682924,11.01155018,133.41,133.38,0.67]
[1763586683442,11.01155018,133.4,133.38,0.67]
[1763586684625,11.01155018,133.41,133.38,0.67]
[1763586684934,11.01155018,133.4,133.38,0.67]
[1763586685132,11.01155018,133.39,133.37,0.1]
[1763586685333,0.71,133.41,133.37,0.1]
[1763586685633,11.01155018,133.38,133.37,0.1]
[1763586685840,11.01155018,133.39,133.38,0.66]
[1763586686035,11.01155018,133.4,133.38,0.66]
[1763586686238,41.12682771,133.43,133.38,0.66]
[1763586686239,11.01155018,133.41,133.38,0.66]
[1763586687032,11.01155018,133.39,133.37,0.1]
[1763586687232,11.01155018,133.38,133.37,0.1]
[1763586689745,11.01155018,133.39,133.37,0.76]
[1763586690758,9.78882769,133.45,133.37,11.77155018]
[1763586690759,11.01155018,133.41,133.37,11.77155018]
[1763586691054,11.01155018,133.41,133.38,0.66]
[1763586691635,0.7,133.47,133.38,0.66]
[1763586691825,1.8,133.47,133.39,11.01155018]
[1763586692026,11.01155018,133.43,133.38,11.67155018]
[1763586692241,18.12096,133.45,133.39,11.67155018]
[1763586692440,11.01155018,133.43,133.39,11.67155018]
[1763586692623,18.12096,133.45,133.4,0.66]
[1763586692824,11.01155018,133.43,133.4,0.66]
[1763586693247,18.12096,133.45,133.4,0.66]
[1763586693248,18.12096,133.44,133.4,0.66]
[1763586693449,11.01155018,133.42,133.4,0.66]
[1763586696857,18.12096,133.44,133.4,0.66]
[1763586697062,11.01155018,133.43,133.4,0.66]
[1763586697436,23.6461572,133.46,133.4,0.66]
[1763586697636,23.6461572,133.46,133.42,11.01155018]
[1763586697637,11.01155018,133.46,133.42,11.01155018]
[1763586697949,11.01155018,133.46,133.43,0.66]
[1763586698151,11.01155018,133.44,133.43,0.66]
[1763586698544,0.7,133.49,133.4,62.76]
[1763586698545,2.5,133.46,133.4,62.76]
[1763586698746,11.01155018,133.42,133.4,0.66]
[1763586700154,11.01155018,133.41,133.39,1.8]
[1763586700362,11.01155018,133.4,133.39,1.8]
[1763586700533,0.7,133.44,133.39,0.66]
[1763586700734,11.01155018,133.41,133.4,0.66]
[1763586701059,11.01155018,133.41,133.38,0.66]
[1763586701265,11.01155018,133.4,133.38,0.66]
[1763586701454,11.01155018,133.41,133.38,0.66]
[1763586703462,29.13251018,133.47,133.38,0.66]
[1763586703463,0.7,133.47,133.39,18.12096]
[1763586703660,11.01155018,133.45,133.4,12.81155018]
[1763586703959,11.01155018,133.44,133.4,2.46]
[1763586704139,11.01155018,133.44,133.41,0.66]
[1763586704333,18.12096,133.48,133.41,11.67155018]
[1763586704561,11.01155018,133.46,133.42,12.81155018]
[1763586704762,11.01155018,133.46,133.42,13.47155018]
[1763586705069,0.7,133.48,133.43,0.66]
[1763586705277,11.01155018,133.46,133.43,0.66]
[1763586705443,11.01155018,133.47,133.43,0.66]
[1763586705649,11.01155018,133.48,133.43,11.67155018]
[1763586706047,11.01155018,133.48,133.44,11.67155018]
[1763586706261,11.01155018,133.48,133.45,1.8]
[1763586706445,11.01155018,133.48,133.45,2.46]
[1763586706654,11.01155018,133.46,133.43,0.66]
[1763586706871,0.7,133.5,133.43,2.46]
[1763586707077,11.01155018,133.47,133.43,2.46]
[1763586707371,0.7,133.5,133.44,0.66]
[1763586707675,11.01155018,133.47,133.44,0.66]
[1763586710266,22.19683706,133.49,133.44,0.66]
[1763586710471,11.01155018,133.47,133.44,0.66]
[1763586714351,11.01155018,133.47,133.44,2.46]
[1763586714762,7.02680951,133.47,133.44,2.46]
[1763586715365,7.02680951,133.47,133.45,0.66]
[1763586715560,7.02680951,133.48,133.45,0.66]
[1763586715952,7.02680951,133.49,133.45,7.68680951]
[1763586716354,7.02680951,133.49,133.46,0.66]
[1763586716759,7.02680951,133.47,133.44,0.66]
[1763586717085,7.02680951,133.48,133.45,2.46]
[1763586717257,7.02680951,133.49,133.45,2.46]
[1763586717456,7.02680951,133.49,133.46,0.66]
[1763586718382,7.02680951,133.48,133.46,0.66]
[1763586718560,7.02680951,133.48,133.45,1.8]
[1763586718773,7.02680951,133.48,133.45,2.46]
[1763586719270,7.02680951,133.47,133.45,2.46]
[1763586719657,7.02680951,133.47,133.45,1.8]
[1763586720055,7.74680951,133.46,133.41,10.44882769]
[1763586720262,40.05802957,133.51,133.42,9.48680951]
[1763586720462,40.05802957,133.51,133.44,7.02680951]
[1763586720663,7.02680951,133.48,133.45,1.8]
[1763586720969,2.95069211,133.48,133.45,2.46]
[1763586721167,2.95069211,133.46,133.43,0.66]
[1763586721365,2.95069211,133.45,133.43,0.66]
[1763586722377,0.72,133.49,133.43,0.66]
[1763586722583,2.95069211,133.46,133.43,0.66]
[1763586723089,2.95069211,133.45,133.42,1.8]
[1763586723393,2.95069211,133.43,133.38,2.46]
[1763586723691,2.95069211,133.39,133.37,0.1]
[1763586723862,2.95069211,133.38,133.37,0.1]
[1763586724792,18.12096,133.45,133.37,7.79209381]
[1763586725088,7.03209381,133.41,133.38,0.66]
[1763586725271,7.03209381,133.41,133.39,1.8]
[1763586725984,7.03209381,133.41,133.39,2.46]
[1763586726167,7.03209381,133.41,133.4,0.66]
[1763586727761,2.52,133.47,133.4,0.66]
[1763586728006,0.72,133.49,133.42,7.03209381]
[1763586728166,22.65706957,133.51,133.44,7.03209381]
[1763586728501,7.03209381,133.49,133.45,0.66]
[1763586728696,7.03209381,133.49,133.45,7.69209381]
[1763586729192,7.03209381,133.51,133.46,7.69209381]
[1763586729367,7.03209381,133.52,133.47,9.49209381]
[1763586729565,7.03209381,133.5,133.44,27.90978769]
[1763586729770,7.03209381,133.48,133.46,18.12096]
[1763586730177,7.03209381,133.49,133.46,18.78096]
[1763586730372,7.03209381,133.49,133.47,0.66]
[1763586731198,7.03209381,133.48,133.46,18.12096]
[1763586731371,7.03209381,133.48,133.46,18.78096]
[1763586731567,7.03209381,133.47,133.44,0.66]
[1763586731900,7.03209381,133.47,133.45,19.92096]
[1763586732075,7.03209381,133.47,133.45,18.12096]
[1763586732408,7.03209381,133.46,133.44,19.92096]
[1763586732570,7.03209381,133.52,133.43,2.46]
[1763586732571,7.03209381,133.45,133.43,2.46]
[1763586732993,7.03209381,133.45,133.43,1.8]
[1763586733174,7.03209381,133.44,133.43,0.66]
[1763586733375,7.03209381,133.46,133.43,1.8]
[1763586733693,7.03209381,133.46,133.44,0.66]
[1763586734002,7.03209381,133.46,133.43,2.46]
[1763586734199,7.03209381,133.46,133.44,0.66]
[1763586734510,7.03209381,133.46,133.43,2.46]
[1763586734684,7.03209381,133.47,133.44,0.66]
[1763586734996,7.03209381,133.46,133.44,0.66]
[1763586735202,7.03209381,133.47,133.44,0.66]
[1763586736000,0.72,133.5,133.44,0.66]
[1763586736194,7.03209381,133.47,133.44,0.66]
[1763586737174,25.15305381,133.52,133.44,7.69209381]
[1763586737381,7.03209381,133.48,133.44,0.66]
[1763586737582,0.72,133.51,133.45,0.66]
[1763586737782,7.03209381,133.48,133.46,1.8]
[1763586738202,7.03209381,133.48,133.47,0.66]
[1763586738831,7.03209381,133.49,133.47,0.66]
[1763586740704,7.03209381,133.48,133.46,2.48]
[1763586741512,7.03209381,133.49,133.47,0.68]
[1763586743985,7.03209381,133.5,133.47,0.68]
[1763586744500,7.03209381,133.53,133.48,16.8209215]
[1763586744685,7.03209381,133.53,133.49,2.48]
[1763586744884,0.71,133.58,133.51,7.03209381]
[1763586745088,7.03209381,133.55,133.52,1.8]
[1763586745489,7.03209381,133.56,133.53,0.7]
[1763586745920,7.03209381,133.57,133.53,0.7]
[1763586746130,7.03209381,133.59,133.54,7.03209381]
[1763586746424,7.03209381,133.59,133.55,1.8]
[1763586746609,7.03209381,133.58,133.55,2.5]
[1763586746791,7.03209381,133.58,133.56,0.7]
[1763586746992,7.23209381,133.6,133.56,0.7]
[1763586747295,0.2,133.6,133.56,0.7]
[1763586747485,7.23209381,133.6,133.56,0.7]
[1763586747990,7.23209381,133.6,133.56,7.73209381]
[1763586748201,7.23209381,133.6,133.56,0.7]
[1763586748422,7.23209381,133.6,133.57,0.7]
[1763586748589,7.23209381,133.6,133.58,1.8]
[1763586749086,7.23209381,133.6,133.58,2.5]
[1763586750592,0.2,133.6,133.59,0.7]
[1763586751624,0.2,133.6,133.59,2.5]
[1763586751834,7.93209381,133.6,133.54,18.82096]
[1763586751993,7.03209381,133.57,133.55,19.92096]
[1763586752807,7.03209381,133.56,133.54,0.7]
[1763586753205,7.03209381,133.55,133.52,0.7]
[1763586753523,7.03209381,133.55,133.53,1.8]
[1763586753927,7.03209381,133.55,133.53,2.5]
[1763586755324,0.9,133.6,133.54,0.7]
[1763586755509,7.03209381,133.57,133.54,0.7]
[1763586755910,7.03209381,133.55,133.52,18.82096]
[1763586756114,7.03209381,133.53,133.5,0.7]
[1763586756309,7.03209381,133.51,133.41,1.99999999]
[1763586756529,7.03209381,133.5,133.47,0.7]
[1763586756729,7.03209381,133.51,133.48,1.8]
[1763586757218,7.03209381,133.53,133.49,7.73209381]
[1763586757420,7.03209381,133.51,133.49,18.82096]
[1763586757819,7.03209381,133.51,133.49,18.12096]
[1763586758734,7.03209381,133.51,133.49,18.82096]
[1763586759029,7.03209381,133.51,133.49,18.12096]
[1763586759232,7.03209381,133.53,133.5,0.7]
[1763586759528,7.03209381,133.54,133.51,1.8]
[1763586759830,7.03209381,133.53,133.51,1.8]
[1763586760001,7.03209381,133.53,133.51,2.5]
[1763586760538,7.03209381,133.52,133.51,2.5]
[1763586761299,0.7,133.59,133.51,27.65305381]
[1763586761529,7.03209381,133.59,133.54,7.03209381]
[1763586761722,0.2,133.6,133.55,9.53209381]
[1763586761925,7.03209381,133.58,133.55,1.8]
[1763586762226,7.03209381,133.56,133.53,0.7]
[1763586762539,7.03209381,133.55,133.51,18.82096]
[1763586762742,7.03209381,133.54,133.52,1.8]
[1763586763030,7.03209381,133.53,133.52,1.8]
[1763586763205,7.03209381,133.54,133.52,1.8]
[1763586763604,7.03209381,133.54,133.52,2.5]
[1763586763905,7.03209381,133.53,133.52,1.8]
[1763586764425,7.03209381,133.54,133.52,1.8]
[1763586764630,7.03209381,133.54,133.52,2.5]
[1763586765033,0.7,133.57,133.52,2.5]
[1763586765329,7.03209381,133.53,133.52,1.8]
[1763586765515,7.03209381,133.53,133.5,1.8]
[1763586765719,7.03209381,133.52,133.5,2.5]
[1763586765920,10.48882769,133.59,133.51,0.7]
[1763586766105,7.03209381,133.53,133.51,0.7]
[1763586767331,7.03209381,133.52,133.5,1.8]
[1763586767517,7.03209381,133.52,133.5,2.5]
[1763586767713,7.03209381,133.53,133.5,2.5]
[1763586768629,0.7,133.55,133.5,2.5]
[1763586768860,7.03209381,133.53,133.5,2.5]
[1763586769732,7.03209381,133.53,133.51,0.66]
[1763586769907,7.03209381,133.54,133.51,0.66]
[1763586770409,7.03209381,133.53,133.51,0.66]
[1763586771023,7.03209381,133.52,133.49,18.12096]
[1763586771226,7.03209381,133.52,133.5,1.8]
[1763586771427,7.03209381,133.52,133.5,2.46]
[1763586771741,7.69209381,133.51,133.48,1.8]
[1763586771945,7.03209381,133.49,133.48,1.8]
[1763586772451,7.03209381,133.49,133.48,2.46]
[1763586772824,7.03209381,133.5,133.48,2.46]
[1763586773017,7.03209381,133.5,133.49,0.66]
[1763586774243,7.03209381,133.53,133.49,0.66]
[1763586774547,7.03209381,133.53,133.5,18.12096]
[1763586774723,7.03209381,133.53,133.51,1.8]
[1763586775036,7.03209381,133.54,133.51,2.46]
[1763586775221,7.03209381,133.54,133.52,0.66]
[1763586775645,0.66,133.58,133.52,0.66]
[1763586775835,7.03209381,133.55,133.52,0.66]
[1763586776819,10.99717558,133.53,133.5,18.12096]
[1763586777022,0.66,133.55,133.51,2.46]
[1763586777023,10.99717558,133.52,133.51,2.46]
[1763586777225,10.99717558,133.53,133.51,2.46]
[1763586777543,10.99717558,133.53,133.52,0.66]
[1763586777941,10.99717558,133.53,133.51,20.58096]